Workbook

Sheet リスト (hidden)
B2: リスト
B4: 公共工事等又は物品役務等の区分 | C4: 契約の相手方の区分 | D4: 一般競争入札・指名競争入札の別 | E4: 総合評価落札方式実施の別 | F4: 随意契約の区分 | G4: 随意契約の見直し | H4: 見直し実施年度 | I4: 一括調達形態
A5: 1 | B5: 公共工事等 | C5: 所管公益法人 | D5: 一般競争入札 | E5: 総合評価実施 | F5: 企画競争 | G5: 引き続き競争入札，企画競争又は公募を実施 | H5: 平成24年度 | I5: 近隣官署一括
A6: 2 | B6: 物品役務等 | C6: その他の公益法人 | D6: 指名競争入札 | E6: 価格競争 | F6: 公募 | G6: 事務・事業の中止 | H6: 平成25年度 | I6: 合同庁舎一括
A7: 3 | C7: 独立行政法人等 | F7: 不落・不調による随意契約 | G7: 競争入札に移行 | H7: 平成26年度以降 | I7: 管区一括
A8: 4 | C8: 特殊法人等 | F8: 契約の性質又は目的が競争を許さない場合 | G8: 企画競争に移行
A9: 5 | C9: 特定民間法人等 | F9: 緊急の必要により競争に付することができない場合 | G9: 公募に移行
A10: 6 | C10: その他の法人等 | F10: 競争に付することが不利と認められる場合 | G10: 随意契約によらざるを得ないもの
A11: 7 | F11: 特例政令に該当する場合
A12: 8 | F12: 秘密随意契約
A13: 9 | F13: 随意契約（その他）
A14: 10

Sheet 別表３
A1: 公共調達の適正化について（平成18年8月25日付財計第2017号）に基づく競争入札に係る情報の公表（物品役務等）
K2: 令和6年9月分
A3: No. | B3: 物品役務等の名称及び数量 | C3: 契約担当官等の氏名並びにその所属する部局の名称及び所在地 | D3: 契約を締結した日 | E3: 契約の相手方の商号又は名称及び住所 | F3: 法人番号 | G3: 一般競争入札・指名競争入札の別 (総合評価の実施) | H3: 予定価格 （円） （税込） | I3: 契約金額 （円） （税込） | J3: 落札率 (％) | K3: 備 考
A4: 1 | B4: 令和6年度松江刑務所で使用する医薬品等購入契約（82品目） | C4: 支出負担行為担当官 松江刑務所長 出雲路 朗 （島根県松江市西川津町67） | D4: 2024-09-02 | E4: 株式会社中央薬品 神奈川県横浜市泉区和泉町1191-4 | F4: 6020001029840 | G4: 一般競争入札 | H4: 1741662 | I4: 1182879 | J4: =IFERROR(ROUNDDOWN(I4/H4,3),"-") -> 0.679 | K4: 単価契約
A5: 2 | B5: 名古屋合同庁舎第1号館ほか8庁舎建築設備等点検業務請負契約 | C5: 支出負担行為担当官 名古屋法務局長 加藤 裕 （愛知県名古屋市中区三の丸2-2-1） | D5: 2024-09-02 | E5: 新日本コーポレーション株式会社 愛知県名古屋市熱田区三本松町13-6 | F5: 7180001021987 | G5: 一般競争入札 | H5: 1929058 | I5: 1499802 | J5: 0.777 | K5: 共同調達（東海北陸厚生局、愛知労働局、中部運輸局、東海防衛支局） 予定価格総額 2,996,127円 契約金額総額 2,486,000円
A6: 3 | B6: 令和6年度那覇地方法務局職員及び那覇地方検察庁職員健康診断業務委託 | C6: 支出負担行為担当官 那覇地方法務局長 山内 恵 （沖縄県那覇市樋川1-15-15） | D6: 2024-09-02 | E6: 一般社団法人日本健康倶楽部 東京都千代田区平河町2-6-1 | F6: 8010005003733 | G6: 一般競争入札 | H6: 1830125 | I6: 1782440 | J6: 0.973 | K6: 単価契約 一括調達（那覇地方検察庁）
A7: 4 | B7: LANケーブル等購入及びスイッチングハブ交換業務委託契約 | C7: 支出負担行為担当官 岡山地方検察庁検事正 花﨑 政之 （岡山県岡山市北区南方1-8-1） | D7: 2024-09-02 | E7: 扶桑電通株式会社岡山営業所 岡山県岡山市北区磨屋町3-10 | F7: 6010001055706 | G7: 一般競争入札 | H7: 7040000 | I7: 4441800 | J7: 0.63
A8: 5 | B8: 金沢法務合同庁舎等の日常及び定期清掃並びに除草等業務一式に係る請負 | C8: 支出負担行為担当官 金沢地方検察庁検事正 宮地 裕美 （石川県金沢市大手町6-15） | D8: 2024-09-02 | E8: 武田商事株式会社 石川県野々市市堀内3-40 | F8: 2220001000405 | G8: 一般競争入札 | H8: 6528109 | I8: 4807000 | J8: 0.736 | K8: 一括調達（中部公安調査局、金沢地方法務局、中部地方更生保護委員会）
A9: 6 | B9: 札幌法務局倶知安支局事務室レイアウト変更作業一式 | C9: 支出負担行為担当官 札幌法務局長 中村 誠 （北海道札幌市北区北八条西2-1-1） | D9: 2024-09-02 | E9: 株式会社三好商会 北海道札幌市中央区大通西18丁目1番地 | F9: 9430001081178 | G9: 一般競争入札 | H9: 5244686 | I9: 5214000 | J9: 0.994
A10: 7 | B10: 東京出入国在留管理局における被収容者用物品供給契約 | C10: 支出負担行為担当官代理 東京出入国在留管理局次長 川畑 豊隆 （東京都港区港南5-5-30） | D10: 2024-09-02 | E10: 株式会社シューエイ商行 千葉県千葉市中央区亀井町4-15 | F10: 8040001003263 | G10: 一般競争入札 | H10: 6678595 | I10: 5614774 | J10: 0.84
A11: 8 | B11: 令和6年度松江刑務所で使用する医薬品等購入契約（87品目） | C11: 支出負担行為担当官 松江刑務所長 出雲路 朗 （島根県松江市西川津町67） | D11: 2024-09-02 | E11: 株式会社エバルス営業本部松江支店 島根県松江市東津田町392-7 | F11: 9240001001527 | G11: 一般競争入札 | H11: 6974919 | I11: 6974919 | J11: 1 | K11: 単価契約
A12: 9 | B12: ガス需給契約 | C12: 支出負担行為担当官 大阪出入国在留管理局長 西山 良 （大阪府大阪市住之江区南港北1-29-53） | D12: 2024-09-02 | E12: 大阪瓦斯株式会社エナジーソリューション事業部 大阪府大阪市中央区平野町4-1-2 | F12: 3120001077601 | G12: 一般競争入札 | H12: 15601253 | I12: 15521855 | J12: 0.994 | K12: 単価契約
A13: 10 | B13: 令和6、7年度法務局地図作成事業請負契約 | C13: 支出負担行為担当官 千葉地方法務局長 蔦 啓一郎 （千葉県千葉市中央区中央港1-11-3） | D13: 2024-09-02 | E13: 公益社団法人千葉県公共嘱託登記土地家屋調査士協会 千葉県千葉市中央区中央港1-23-25 | F13: 6040005001208 | G13: 一般競争入札 | H13: 46401397 | I13: 46200000 | J13: 0.995 | K13: 国庫債務負担行為
A14: 11 | B14: 刑務官夏制服上衣表地ほかの供給一式 | C14: 支出負担行為担当官 東京拘置所長 柴﨑 正文 （東京都葛飾区小菅1-35-1） | D14: 2024-09-02 | E14: 信和株式会社 東京都新宿区市谷本村町2-5 | F14: 3011101058122 | G14: 一般競争入札 | H14: 72829350 | I14: 72766650 | J14: 0.999
A15: 12 | B15: 刑務官冬制帽ほかの供給一式 | C15: 支出負担行為担当官 東京拘置所長 柴﨑 正文 （東京都葛飾区小菅1-35-1） | D15: 2024-09-02 | E15: 日本官帽制帽株式会社 東京都台東区浅草橋1-26-12 | F15: 3010501015170 | G15: 一般競争入札 | H15: 93251675 | I15: 91982000 | J15: 0.986
A16: 13 | B16: 防寒衣の供給一式 | C16: 支出負担行為担当官 東京拘置所長 柴﨑 正文 （東京都葛飾区小菅1-35-1） | D16: 2024-09-02 | E16: 東興産業株式会社 東京都中央区日本橋蛎殻町1-36-2 | F16: 8012301001726 | G16: 一般競争入札 | H16: 146760220 | I16: 144425600 | J16: 0.984
A17: 14 | B17: 刑務官冬制服の供給一式 | C17: 支出負担行為担当官 東京拘置所長 柴﨑 正文 （東京都葛飾区小菅1-35-1） | D17: 2024-09-02 | E17: 東興産業株式会社 東京都中央区日本橋蛎殻町1-36-2 | F17: 8012301001726 | G17: 一般競争入札 | H17: 346479375 | I17: 343983750 | J17: 0.992
A18: 15 | B18: 令和6年度下半期富山刑務所被収容者用倉庫食材供給単価契約（29品目） | C18: 支出負担行為担当官 富山刑務所長 小阪 知晃 （富山県富山市西荒屋285-1） | D18: 2024-09-03 | E18: カナカン株式会社 石川県金沢市袋町3-8 | F18: 5220001018849 | G18: 一般競争入札 | H18: 1695127 | I18: 1317097 | J18: 0.776 | K18: 単価契約
A19: 16 | B19: 令和6年度下半期富山刑務所被収容者用精肉供給単価契約（2品目） | C19: 支出負担行為担当官 富山刑務所長 小阪 知晃 （富山県富山市西荒屋285-1） | D19: 2024-09-03 | E19: 株式会社富山栄養 富山県富山市塚原7-1 | F19: 8230001002048 | G19: 一般競争入札 | H19: 2014200 | I19: 1405350 | J19: 0.697 | K19: 単価契約
A20: 17 | B20: 令和6年度下半期富山刑務所被収容者用倉庫食材供給単価契約（37品目） | C20: 支出負担行為担当官 富山刑務所長 小阪 知晃 （富山県富山市西荒屋285-1） | D20: 2024-09-03 | E20: フジノ食品株式会社 富山県富山市上赤江町1-2-4 | F20: 8160001010198 | G20: 一般競争入札 | H20: 2220171 | I20: 1653296 | J20: 0.744 | K20: 単価契約
A21: 18 | B21: 東京拘置所産業廃棄物（混合ごみ等）収集運搬及び廃棄物処分業務委託 | C21: 支出負担行為担当官 東京拘置所長 柴﨑 正文 （東京都葛飾区小菅1-35-1） | D21: 2024-09-03 | E21: 株式会社ヨシモリ 東京都足立区関原1-12-2 | F21: 8011801012984 | G21: 一般競争入札 | H21: 2205775 | I21: 1666500 | J21: 0.755 | K21: 単価契約
A22: 19 | B22: 令和6年度下半期富山刑務所被収容者用倉庫食材供給単価契約（17品目） | C22: 支出負担行為担当官 富山刑務所長 小阪 知晃 （富山県富山市西荒屋285-1） | D22: 2024-09-03 | E22: 株式会社隨喜産業 東京都新宿区上落合2-8-2 | F22: 2011101010356 | G22: 一般競争入札 | H22: 2257865 | I22: 1701194 | J22: 0.753 | K22: 単価契約
A23: 20 | B23: 令和6年度下半期富山刑務所被収容者用食材供給単価契約（29品目） | C23: 支出負担行為担当官 富山刑務所長 小阪 知晃 （富山県富山市西荒屋285-1） | D23: 2024-09-03 | E23: 株式会社富冷 富山県富山市掛尾町500 | F23: 8230001002221 | G23: 一般競争入札 | H23: 3097720 | I23: 2053620 | J23: 0.662 | K23: 単価契約
A24: 21 | B24: 令和6年度下半期富山刑務所被収容者用食材供給単価契約（30品目） | C24: 支出負担行為担当官 富山刑務所長 小阪 知晃 （富山県富山市西荒屋285-1） | D24: 2024-09-03 | E24: カナカン株式会社 石川県金沢市袋町3-8 | F24: 5220001018849 | G24: 一般競争入札 | H24: 3156322 | I24: 2321984 | J24: 0.735 | K24: 単価契約
A25: 22 | B25: 令和6年度下半期富山刑務所被収容者用精肉供給単価契約（11品目） | C25: 支出負担行為担当官 富山刑務所長 小阪 知晃 （富山県富山市西荒屋285-1） | D25: 2024-09-03 | E25: 北陸ミート株式会社 富山県富山市金屋2715-13 | F25: 8230001003054 | G25: 一般競争入札 | H25: 3400210 | I25: 2572884 | J25: 0.756 | K25: 単価契約
A26: 23 | B26: 収納ボックス物品供給契約（1,500個） | C26: 支出負担行為担当官 福岡刑務所長 竹内 徹 （福岡県糟屋郡宇美町障子岳南6-1-1） | D26: 2024-09-03 | E26: 株式会社イナザワ 福岡県糟屋郡須惠町大字上須恵748-3 | F26: 4290001038098 | G26: 一般競争入札 | H26: 3465000 | I26: 2722500 | J26: 0.785
A27: 24 | B27: 令和6年度神戸刑務所ファン付き作業着等一式調達契約 | C27: 支出負担行為担当官 神戸刑務所長 二階堂 亮治 （兵庫県明石市大久保町森田120） | D27: 2024-09-03 | E27: ミドリ安全株式会社加古川支店 兵庫県加古川市平岡町二俣686-1 | F27: 1011001022683 | G27: 一般競争入札 | H27: 3289220 | I27: 3175084 | J27: 0.965
A28: 25 | B28: 令和6年度定期健康診断等業務委託 | C28: 支出負担行為担当官 前橋地方検察庁検事正 坂本 佳胤 （群馬県前橋市大手町3-2-1） | D28: 2024-09-03 | E28: 公益財団法人群馬県健康づくり財団 群馬県前橋市堀之下町16-1 | F28: 9070005001111 | G28: 一般競争入札 | H28: 3670128 | I28: 3355473 | J28: 0.914 | K28: 単価契約 一括調達（前橋地方法務局、関東地方更生保護委員会、関東公安調査局、東京出入国在留管理局）
A29: 26 | B29: 令和6年度下半期富山刑務所被収容者用食材供給単価契約（41品目） | C29: 支出負担行為担当官 富山刑務所長 小阪 知晃 （富山県富山市西荒屋285-1） | D29: 2024-09-03 | E29: フジノ食品株式会社 富山県富山市上赤江町1-2-4 | F29: 8160001010198 | G29: 一般競争入札 | H29: 5409855 | I29: 3840988 | J29: 0.709 | K29: 単価契約
A30: 27 | B30: 福井地方法務局小浜支局事務室什器移設作業等契約 | C30: 支出負担行為担当官 福井地方法務局長 小杉 悦子 （福井県福井市春山1-1-54） | D30: 2024-09-03 | E30: エフケーユーテクニカル株式会社 福井県福井市和田東1-813 | F30: 1210001000547 | G30: 一般競争入札 | H30: 4259421 | I30: 4224000 | J30: 0.991
A31: 28 | B31: 堺合同庁舎の保全警備業務 | C31: 支出負担行為担当官 大阪地方検察庁検事正 小弓場 文彦 （大阪府大阪市福島区福島1-1-60） | D31: 2024-09-04 | E31: セコム株式会社 東京都渋谷区神宮前1-5-1 | F31: 6011001035920 | G31: 一般競争入札 | H31: - | I31: 659394 | J31: - | K31: 同種の他の契約の予定価格を類推されるおそれがあるため、予定価格を公表しない。 国庫債務負担行為 共同調達（大阪法務局、近畿地方更生保護委員会、【大阪国税局】、大阪労働局） 契約金額総額 2,113,452円
A32: 29 | B32: 郵便料金計器購入等一式 | C32: 支出負担行為担当官 神戸地方法務局長 三木 秀樹 （兵庫県神戸市中央区波止場町1-1） | D32: 2024-09-04 | E32: ピツニーボウズジャパン株式会社 東京都品川区北品川4-7-35 | F32: 7010701008334 | G32: 一般競争入札 | H32: 2038850 | I32: 858000 | J32: 0.42
A33: 30 | B33: 令和6年度下半期被収容者用食料品（倉庫品）供給契約（26品目） | C33: 支出負担行為担当官 佐賀少年刑務所長 福田 篤史 （佐賀県佐賀市新生町2-1） | D33: 2024-09-04 | E33: 下田商事株式会社 佐賀県小城葦三日月町織島2102-1 | F33: 4310001005533 | G33: 一般競争入札 | H33: 2019563 | I33: 1620430 | J33: 0.802 | K33: 単価契約
A34: 31 | B34: 令和6年度福岡刑務所被収容者定期健康診断委託契約 | C34: 支出負担行為担当官 福岡刑務所長 竹内 徹 （福岡県糟屋郡宇美町障子岳南6-1-1） | D34: 2024-09-04 | E34: 一般社団法人日本健康倶楽部福岡支部 福岡県福岡市東区松島3-29-18 | F34: 8010005003733 | G34: 一般競争入札 | H34: 1911250 | I34: 1737500 | J34: 0.909 | K34: 単価契約
A35: 32 | B35: 令和6年度下半期被収容者用食料品（倉庫品）供給契約（26品目） | C35: 支出負担行為担当官 佐賀少年刑務所長 福田 篤史 （佐賀県佐賀市新生町2-1） | D35: 2024-09-04 | E35: 有限会社アリアケ 福岡県福岡市東区松島4-7-32 | F35: 1290002004184 | G35: 一般競争入札 | H35: 2452571 | I35: 1891656 | J35: 0.771 | K35: 単価契約
A36: 33 | B36: 白麦供給単価契約（13,860kg） | C36: 支出負担行為担当官 岐阜刑務所長 前田 昌幸 （岐阜県岐阜市則松1-34-1） | D36: 2024-09-04 | E36: ミエハク工業株式会社 三重県津市一身田中野78-1 | F36: 7190001001138 | G36: 一般競争入札 | H36: 3367980 | I36: 2993760 | J36: 0.888 | K36: 単価契約
A37: 34 | B37: パン供給単価契約（3,831kg） | C37: 支出負担行為担当官 岐阜刑務所長 前田 昌幸 （岐阜県岐阜市則松1-34-1） | D37: 2024-09-04 | E37: 株式会社コガネパン 岐阜県岐阜市柳津町上佐波西1-127 | F37: 1200001008112 | G37: 一般競争入札 | H37: 3301344 | I37: 3053743 | J37: 0.924 | K37: 単価契約
A38: 35 | B38: 令和6年度下半期被収容者用食料品（食肉）供給契約（8品目） | C38: 支出負担行為担当官 佐賀少年刑務所長 福田 篤史 （佐賀県佐賀市新生町2-1） | D38: 2024-09-04 | E38: 石丸食肉産業株式会社 佐賀県三養基郡みやき町大字原古賀307-1 | F38: 3300001006351 | G38: 一般競争入札 | H38: 7521147 | I38: 6371576 | J38: 0.847 | K38: 単価契約
A39: 36 | B39: 令和6年度網走刑務所コンバイン供給契約（1台） | C39: 支出負担行為担当官 網走刑務所長 中村 寛之 （北海道網走市字三眺） | D39: 2024-09-04 | E39: 株式会社北海道クボタ美幌営業所 北海道網走郡美幌町字稲美224-24 | F39: 6430001021855 | G39: 一般競争入札 | H39: 10026500 | I39: 7579000 | J39: 0.755
A40: 37 | B40: 輪島地方合同庁舎吸収式冷温水機真空系部品及び電装系部品整備作業一式 | C40: 支出負担行為担当官 金沢地方法務局長 石田 正信 （石川県金沢市新神田4-3-10） | D40: 2024-09-05 | E40: 株式会社スズキケンショウ 石川県金沢市尾張町2-9-23 | F40: 5220001003578 | G40: 一般競争入札 | H40: 1030368 | I40: 929084 | J40: 0.901 | K40: 共同調達（石川労働局、北陸地方整備局） 予定価格 2,215,368円 契約金額総額 1,997,600円
A41: 38 | B41: 令和6年度美祢社会復帰促進センター汚泥処理設備（汚泥脱水装置）部品更新 | C41: 支出負担行為担当官 美祢社会復帰促進センター長 二ノ宮 潮 （山口県美祢市豊田前町10番地） | D41: 2024-09-05 | E41: 日化メンテナンス株式会社 東京都千代田区東神田2-5-12 | F41: 4010001027005 | G41: 一般競争入札 | H41: 1486100 | I41: 1452000 | J41: 0.977
A42: 39 | B42: 松山地方検察庁ほか3施設におけるLAN環境整備作業等請負契約 | C42: 支出負担行為担当官 松山地方検察庁検事正 西村 朗太 （愛媛県松山市一番町4-4-1） | D42: 2024-09-05 | E42: 株式会社USEN 東京都品川区上大崎3-1-1 | F42: 8010401132177 | G42: 一般競争入札 | H42: 2105233 | I42: 1665400 | J42: 0.791
A43: 40 | B43: 福岡拘置所コンピュータ・ラジオグラフィー装置購入契約（1台） | C43: 支出負担行為担当官 福岡拘置所長 古川 英樹 （福岡県福岡市早良区百道2-16-10） | D43: 2024-09-05 | E43: アイティーアイ株式会社 福岡県福岡市東区社領3-10-7 | F43: 9310001000026 | G43: 一般競争入札 | H43: 2090000 | I43: 2035000 | J43: 0.973
A44: 41 | B44: 令和6年度下半期長野刑務所被収容者副食用精肉供給契約（2品目） | C44: 支出負担行為担当官 長野刑務所長 関原 隆男 （長野県須坂市大字須坂1200） | D44: 2024-09-05 | E44: 有限会社アルファ 長野県須坂市大字栃倉101-16 | F44: 5100002008225 | G44: 一般競争入札 | H44: 2566080 | I44: 2142774 | J44: 0.835 | K44: 単価契約
A45: 42 | B45: 在留手続諸申請結果交付予約システム制作業務 一式 | C45: 支出負担行為担当官 出入国在留管理庁次長 杉山 徳明 （東京都千代田区霞が関1-1-1） | D45: 2024-09-05 | E45: 株式会社Realmedia Lab． 神奈川県横浜市鶴見区鶴見中央4-34-26 | F45: 7020001043056 | G45: 一般競争入札 | H45: 4317954 | I45: 2175800 | J45: 0.503
A46: 43 | B46: 郵便料金計器2台の購入 | C46: 支出負担行為担当官 大阪出入国在留管理局長 西山 良 （大阪府大阪市住之江区南港北1-29-53） | D46: 2024-09-05 | E46: ピツニーボウズジャパン株式会社 東京都品川区北品川4-7-35 | F46: 7010701008334 | G46: 一般競争入札 | H46: 2685210 | I46: 2286240 | J46: 0.851
A47: 44 | B47: 令和6年度下半期被収容者用食料品（即時品）供給契約（25品目） | C47: 支出負担行為担当官 佐賀少年刑務所長 福田 篤史 （佐賀県佐賀市新生町2-1） | D47: 2024-09-05 | E47: 協和商工株式会社佐賀支店 佐賀県神埼市千代田町詫田57-1 | F47: 4310001005310 | G47: 一般競争入札 | H47: 2848500 | I47: 2371750 | J47: 0.832 | K47: 単価契約
A48: 45 | B48: 令和6年度下半期被収容者用食料品（即時品）供給契約（25品目） | C48: 支出負担行為担当官 佐賀少年刑務所長 福田 篤史 （佐賀県佐賀市新生町2-1） | D48: 2024-09-05 | E48: 下田商事株式会社 佐賀県小城葦三日月町織島2102-1 | F48: 4310001005533 | G48: 一般競争入札 | H48: 4936000 | I48: 3838230 | J48: 0.777 | K48: 単価契約
A49: 46 | B49: 令和6年度下半期被収容者用食料品（即時品）供給契約（29品目） | C49: 支出負担行為担当官 佐賀少年刑務所長 福田 篤史 （佐賀県佐賀市新生町2-1） | D49: 2024-09-05 | E49: 有限会社アリアケ 福岡県福岡市東区松島4-7-32 | F49: 1290002004184 | G49: 一般競争入札 | H49: 5354300 | I49: 4764946 | J49: 0.889 | K49: 単価契約
A50: 47 | B50: 令和6年度多元放映システム更新一式（1台） | C50: 支出負担行為担当官 東北少年院長 馬場 尚文 （宮城県仙台市若林区古城3-21-1） | D50: 2024-09-05 | E50: 株式会社エーブィテック 宮城県仙台市若林区沖野4-1-30 | F50: 2370001004770 | G50: 一般競争入札 | H50: 8900696 | I50: 8800000 | J50: 0.988
A51: 48 | B51: 令和6年度下半期長野刑務所被収容者副食用精肉供給契約（15品目） | C51: 支出負担行為担当官 長野刑務所長 関原 隆男 （長野県須坂市大字須坂1200） | D51: 2024-09-05 | E51: 有限会社山﨑精肉店 長野県中野市大字江部351-1 | F51: 6100002018339 | G51: 一般競争入札 | H51: 11741598 | I51: 10518735 | J51: 0.895 | K51: 単価契約
A52: 49 | B52: タブレット型PC等調達契約（40台） | C52: 支出負担行為担当官代理 大阪刑務所総務部長 上田 智久 （大阪府堺市堺区田出井町6-1） | D52: 2024-09-05 | E52: 三和コンピュータ株式会社 東京都港区南麻布3-20-1 | F52: 8010401011967 | G52: 一般競争入札 | H52: 12342360 | I52: 12100000 | J52: 0.98
A53: 50 | B53: 令和6年度宮城刑務所C型肝炎治療薬供給契約（3品目） | C53: 支出負担行為担当官 宮城刑務所長 林 文彦 （宮城県仙台市古城2-3-1） | D53: 2024-09-05 | E53: 株式会社バイタルネット 宮城県仙台市青葉区大手町1-1 | F53: 4370001008142 | G53: 一般競争入札 | H53: 100224300 | I53: 99444570 | J53: 0.992 | K53: 単価契約
A54: 51 | B54: 矯正総合情報通信ネットワークシステムのセキュリティ対策サーバの構築・機器賃貸借等及び運用管理業務 一式 | C54: 支出負担行為担当官 法務省大臣官房会計課長 村松 秀樹 （東京都千代田区霞が関1-1-1） | D54: 2024-09-05 | E54: 株式会社日立システムズ 東京都品川区大崎1-2-1 NTT・TCリース株式会社 東京都港区港南1-2-70 | F54: 6010701025710 3010401151289 | G54: 一般競争入札（総合評価落札方式） | H54: 557363171 | I54: 531198800 | J54: 0.953 | K54: 国庫債務負担行為
A55: 52 | B55: 令和6年度下半期食料品（冷凍野菜）購入単価契約（12品目） | C55: 支出負担行為担当官 和歌山刑務所長 三木 直美 （和歌山県和歌山市加納383） | D55: 2024-09-06 | E55: 尾家産業株式会社 大阪府大阪市北区豊崎6-11-27 | F55: 5120001061479 | G55: 一般競争入札 | H55: 1867838.4 | I55: 1375153.2 | J55: 0.736 | K55: 単価契約
A56: 53 | B56: カラー印刷機（1台）交換契約 | C56: 支出負担行為担当官 水戸地方法務局長 田中 徹 （茨城県水戸市北見町1-1） | D56: 2024-09-06 | E56: デュプロ株式会社 東京都千代田区神田紺屋町7 | F56: 6013301013580 | G56: 一般競争入札 | H56: 2055350 | I56: 1452000 | J56: 0.706
A57: 54 | B57: 令和6年度下半期食料品（冷蔵食品）購入単価契約（18品目） | C57: 支出負担行為担当官 和歌山刑務所長 三木 直美 （和歌山県和歌山市加納383） | D57: 2024-09-06 | E57: 有限会社鈴井園茶舗 宮城県仙台市太白区西多賀4-13-10 | F57: 2370002011700 | G57: 一般競争入札 | H57: 1773802.8 | I57: 1489966.92 | J57: 0.839 | K57: 単価契約
A58: 55 | B58: 消防ポンプ調達契約（2台） | C58: 支出負担行為担当官 大分少年院長 小柴 直樹 （大分県豊後大野市三重町赤嶺2721） | D58: 2024-09-06 | E58: 新日本消防設備株式会社 大分県大分市住吉町2-6-34 | F58: 5320001001381 | G58: 一般競争入札 | H58: 1892000 | I58: 1782000 | J58: 0.941
A59: 56 | B59: 令和6年度下半期分被収容者用食料品供給単価契約（生鮮食）（8品目） | C59: 支出負担行為担当官 名古屋拘置所長 三角 渉 （愛知県名古屋市東区白壁1-1） | D59: 2024-09-06 | E59: 株式会社イト商 愛知県清須市春日宮重町528 | F59: 2180001034275 | G59: 一般競争入札 | H59: 2193951 | I59: 1930108 | J59: 0.879 | K59: 単価契約
A60: 57 | B60: 検察庁広報用パンフレット印刷製本業務の請負 一式 | C60: 支出負担行為担当官 法務省大臣官房会計課長 村松 秀樹 （東京都千代田区霞が関1-1-1） | D60: 2024-09-06 | E60: 日本印刷株式会社 東京都千代田区神田須田町1-5 | F60: 3010001005787 | G60: 一般競争入札（総合評価落札方式） | H60: 3185490 | I60: 2750000 | J60: 0.863
A61: 58 | B61: 令和6年度下半期分被収容者用食料品供給単価契約（生鮮食）（15品目） | C61: 支出負担行為担当官 名古屋拘置所長 三角 渉 （愛知県名古屋市東区白壁1-1） | D61: 2024-09-06 | E61: 有限会社丸山商店 愛知県名古屋市熱田区川並町2-22名古屋市中央卸売市場本場内 | F61: 5180002020825 | G61: 一般競争入札 | H61: 3773930 | I61: 2759472 | J61: 0.731 | K61: 単価契約
A62: 59 | B62: 令和6年度下半期分被収容者用食料品供給単価契約（生鮮食）（7品目） | C62: 支出負担行為担当官 名古屋拘置所長 三角 渉 （愛知県名古屋市東区白壁1-1） | D62: 2024-09-06 | E62: 株式会社丸小本店 愛知県名古屋市中区東桜2-18-24 | F62: 5180001040675 | G62: 一般競争入札 | H62: 3102333 | I62: 3005655 | J62: 0.968 | K62: 単価契約
A63: 60 | B63: 令和6年度下半期分被収容者用食料品供給単価契約（生鮮食）（21品目） | C63: 支出負担行為担当官 名古屋拘置所長 三角 渉 （愛知県名古屋市東区白壁1-1） | D63: 2024-09-06 | E63: 株式会社ニシヤマ 愛知県豊田市栄生町1-29 | F63: 2180301019067 | G63: 一般競争入札 | H63: 3946888 | I63: 3102227 | J63: 0.785 | K63: 単価契約
A64: 61 | B64: 令和6年度下半期分被収容者用食料品供給単価契約（生鮮食）（4品目） | C64: 支出負担行為担当官 名古屋拘置所長 三角 渉 （愛知県名古屋市東区白壁1-1） | D64: 2024-09-06 | E64: 株式会社肉のヤマト 愛知県春日井群豊山町大字青山字金剛24 | F64: 8180001045515 | G64: 一般競争入札 | H64: 3538781 | I64: 3538781 | J64: 1 | K64: 単価契約
A65: 62 | B65: 令和6年度盛岡地方検察庁、盛岡保護観察所、盛岡公安調査事務所及び盛岡地方法務局定期健康診断等業務委託契約 | C65: 支出負担行為担当官 盛岡地方検察庁検事正 干川 亜紀 （岩手県盛岡市内丸8-20） | D65: 2024-09-06 | E65: 医療法人遠山病院 岩手県盛岡市下ノ橋町6-14 | F65: 5400005000677 | G65: 一般競争入札 | H65: 3952619 | I65: 3664089 | J65: 0.927 | K65: 単価契約 一括調達（東北地方更生保護委員会、東北公安調査局、盛岡地方法務局）
A66: 63 | B66: 自動車交換契約（1台） | C66: 支出負担行為担当官 福岡高等検察庁検事長 松本 裕 （福岡県福岡市中央区六本松4-2-3） | D66: 2024-09-06 | E66: 株式会社ホンダモビリティ九州 福岡県福岡市中央区赤坂1-13-12 | F66: 2290001016634 | G66: 一般競争入札（総合評価落札方式） | H66: 4235020 | I66: 3818544 | J66: 0.901
A67: 64 | B67: 令和6年度下半期分被収容者用食料品供給単価契約（生鮮食）（24品目） | C67: 支出負担行為担当官 名古屋拘置所長 三角 渉 （愛知県名古屋市東区白壁1-1） | D67: 2024-09-06 | E67: フジノ食品株式会社 愛知県清須市春日五反地49-2 | F67: 8160001010198 | G67: 一般競争入札 | H67: 6248903 | I67: 4542310 | J67: 0.726 | K67: 単価契約
A68: 65 | B68: 2階女子更衣室等改修作業請負契約 | C68: 支出負担行為担当官代理 名古屋出入国在留管理局次長 小山 裕美 （愛知県名古屋市港区正保町5-18） | D68: 2024-09-06 | E68: 合同会社ディージョイセレクト 愛知県名古屋市東区芳野3-9-36 | F68: 6180003016375 | G68: 一般競争入札 | H68: 5682578 | I68: 4561920 | J68: =IFERROR(ROUNDDOWN(I68/H68,3),"-") -> 0.802
A69: 66 | B69: 令和6年度下半期食料品（冷凍食品）購入単価契約（37品目） | C69: 支出負担行為担当官 和歌山刑務所長 三木 直美 （和歌山県和歌山市加納383） | D69: 2024-09-06 | E69: 尾家産業株式会社 大阪府大阪市北区豊崎6-11-27 | F69: 5120001061479 | G69: 一般競争入札 | H69: 7621295.99 | I69: 5069325.6 | J69: 0.665 | K69: 単価契約
A70: 67 | B70: 令和6年度下半期分被収容者用食料品供給単価契約（生鮮食）（44品目） | C70: 支出負担行為担当官 名古屋拘置所長 三角 渉 （愛知県名古屋市東区白壁1-1） | D70: 2024-09-06 | E70: 尾家産業株式会社名古屋支店 愛知県名古屋市守山区大字上志段味字川原134-1 | F70: 5120001061479 | G70: 一般競争入札 | H70: 7328209 | I70: 6799875 | J70: 0.927 | K70: 単価契約
A71: 68 | B71: 千葉第2地方合同庁舎電話交換機等電話設備供給及び更新作業請負業務（1台） | C71: 支出負担行為担当官 千葉地方検察庁検事正 長谷川 保 （千葉県千葉市中央区中央4-11-1） | D71: 2024-09-06 | E71: 神田通信機株式会社 東京都千代田区神田富山町24 | F71: 6010001013597 | G71: 一般競争入札 | H71: 12149411 | I71: 10340274 | J71: 0.851 | K71: 共同調達（千葉労働局、千葉労働基準監督署、千葉防衛事務所） 予定価格総額 41,358,601円 契約金額総額 35,200,000円
A72: 69 | B72: 法務教官等夏制服の供給一式 | C72: 支出負担行為担当官代理 東京拘置所総務部長 川村 祐樹 （東京都葛飾区小菅1-35-1） | D72: 2024-09-06 | E72: 信和株式会社 東京都新宿区市谷本村町2-5 | F72: 3011101058122 | G72: 一般競争入札 | H72: 15503884 | I72: 15393400 | J72: 0.992
A73: 70 | B73: 福岡空港国際線ターミナル拡張及び神戸空港サブターミナル供用開始に伴うIC旅券対応・出入国審査等旅券自動読取装置の賃貸借 一式 | C73: 支出負担行為担当官 出入国在留管理庁次長 杉山 徳明 （東京都千代田区霞が関1-1-1） | D73: 2024-09-06 | E73: パナソニックコネクト株式会社 福岡県福岡市博多区美野島4-1-62 三井住友トラスト・パナソニックファイナンス株式会社 東京都港区芝浦1-2-3 | F73: 3010001129215 1010001146146 | G73: 一般競争入札 | H73: 32195328 | I73: 28147680 | J73: 0.874 | K73: 5か年分の保守料を含む。 賃貸借料合計 3,352,800円 保守料 24,794,880円
A74: 71 | B74: 証拠データ閲覧用パソコン等の供給 一式 | C74: 支出負担行為担当官 法務省大臣官房会計課長 村松 秀樹 （東京都千代田区霞が関1-1-1） | D74: 2024-09-06 | E74: シャープマーケティングジャパン株式会社 大阪府八尾市北亀井町3-1-72 | F74: 1040001008905 | G74: 一般競争入札（総合評価落札方式） | H74: 187477943 | I74: 186841050 | J74: 0.996
A75: 72 | B75: 令和6年度下半期被収容者給食用食料品供給契約（1品目） | C75: 支出負担行為担当官 千葉刑務所長 倉田 克己 （千葉県千葉市若葉区貝塚町192） | D75: 2024-09-09 | E75: 千葉県ヤクルト株式会社 千葉県千葉市若葉区加曽利町63 | F75: 4040001014990 | G75: 一般競争入札 | H75: 1933803 | I75: 1792082 | J75: 0.926 | K75: 単価契約
A76: 73 | B76: 令和6年度下半期被収容者給食用食料品供給契約（7品目） | C76: 支出負担行為担当官 千葉刑務所長 倉田 克己 （千葉県千葉市若葉区貝塚町192） | D76: 2024-09-09 | E76: 株式会社中村商店 千葉県八街市八街い49-1 | F76: 2040001005645 | G76: 一般競争入札 | H76: 2296624 | I76: 2051444 | J76: 0.893 | K76: 単価契約
A77: 74 | B77: 令和6年度下半期コッペパン購入契約（2,750㎏単価契約） | C77: 支出負担行為担当官 高松刑務所長 中島 孝博 （香川県高松市松福町2-16-63） | D77: 2024-09-09 | E77: 株式会社池田商店 香川県仲多度郡琴平町五條488-2 | F77: 7470001008311 | G77: 一般競争入札 | H77: 2337508 | I77: 2325510 | J77: 0.994 | K77: 単価契約
A78: 75 | B78: 令和6年度下半期食肉購入契約（豚ももスライス2,900㎏単価契約） | C78: 支出負担行為担当官 高松刑務所長 中島 孝博 （香川県高松市松福町2-16-63） | D78: 2024-09-09 | E78: 株式会社山食 香川県高松市鶴市町220-1 | F78: 5470001012595 | G78: 一般競争入札 | H78: 2630880 | I78: 2624616 | J78: 0.997 | K78: 単価契約
A79: 76 | B79: 令和6年度下半期精麦購入契約（12,000㎏単価契約） | C79: 支出負担行為担当官 高松刑務所長 中島 孝博 （香川県高松市松福町2-16-63） | D79: 2024-09-09 | E79: 株式会社山食 香川県高松市鶴市町220-1 | F79: 3470001004735 | G79: 一般競争入札 | H79: 2786400 | I79: 2695680 | J79: 0.967 | K79: 単価契約
A80: 77 | B80: 令和6年度榛名女子学園エアコン機器整備（3台） | C80: 支出負担行為担当官 榛名女子学園長 佐伯 由佳 （群馬県北群馬郡榛東村新井1027-1） | D80: 2024-09-09 | E80: 株式会社前橋空調機器サービス 群馬県前橋市元総社町3-5-25 | F80: 7070001002949 | G80: 一般競争入札 | H80: 4158000 | I80: 2750000 | J80: 0.661
A81: 78 | B81: 令和6年度下半期被収容者給食用食料品供給契約（2品目） | C81: 支出負担行為担当官 千葉刑務所長 倉田 克己 （千葉県千葉市若葉区貝塚町192） | D81: 2024-09-09 | E81: 株式会社富士食品 千葉県君津市坂田272 | F81: 3040001052141 | G81: 一般競争入札 | H81: 3490344 | I81: 3164184 | J81: 0.906 | K81: 単価契約
A82: 79 | B82: 川越少年刑務所 第5・6工場天井照明器具等更新整備一式供給契約 | C82: 支出負担行為担当官 川越少年刑務所長 北川 統之 （埼玉県川越市南大塚6-40-1） | D82: 2024-09-09 | E82: ムライ電気工業株式会社 東京都江戸川区中央2-29-9 | F82: 6011701007764 | G82: 一般競争入札 | H82: 3845600 | I82: 3294500 | J82: 0.856
A83: 80 | B83: 令和6年度下半期被収容者給食用食料品供給契約（22品目） | C83: 支出負担行為担当官 千葉刑務所長 倉田 克己 （千葉県千葉市若葉区貝塚町192） | D83: 2024-09-09 | E83: 株式会社石田食品 千葉県印西市木下680-10 | F83: 5040001043601 | G83: 一般競争入札 | H83: 3333027 | I83: 3333027 | J83: 1 | K83: 単価契約
A84: 81 | B84: 令和6年度下半期被収容者給食用食料品供給契約（34品目） | C84: 支出負担行為担当官 千葉刑務所長 倉田 克己 （千葉県千葉市若葉区貝塚町192） | D84: 2024-09-09 | E84: 尾家産業株式会社 千葉県千葉市中央区都町1277-1 | F84: 5120001061479 | G84: 一般競争入札 | H84: 4376035 | I84: 3979476 | J84: 0.909 | K84: 単価契約
A85: 82 | B85: 令和6年度下半期被収容者給食用食料品供給契約（32品目） | C85: 支出負担行為担当官 千葉刑務所長 倉田 克己 （千葉県千葉市若葉区貝塚町192） | D85: 2024-09-09 | E85: 有限会社鈴井園茶舗 宮城県仙台市青葉区五橋1-7-17 | F85: 2370002011700 | G85: 一般競争入札 | H85: 5118637 | I85: 4652433 | J85: 0.908 | K85: 単価契約
A86: 83 | B86: 令和6年度下半期被収容者給食用食料品供給契約（13品目） | C86: 支出負担行為担当官 千葉刑務所長 倉田 克己 （千葉県千葉市若葉区貝塚町192） | D86: 2024-09-09 | E86: 株式会社随喜産業 東京都新宿区上落合2-8-2 | F86: 2011101010356 | G86: 一般競争入札 | H86: 6805197 | I86: 5489767 | J86: 0.806 | K86: 単価契約
A87: 84 | B87: 令和6年度下半期被収容者給食用食料品供給契約（47品目） | C87: 支出負担行為担当官 千葉刑務所長 倉田 克己 （千葉県千葉市若葉区貝塚町192） | D87: 2024-09-09 | E87: 有限会社梅澤商店 千葉県千葉市中央区鶴沢町11-12 | F87: 5040002001541 | G87: 一般競争入札 | H87: 9025674 | I87: 7226474 | J87: 0.8 | K87: 単価契約
A88: 85 | B88: 令和5年度鹿児島刑務所自動火災報知設備更新整備 | C88: 支出負担行為担当官 鹿児島刑務所長 山内 博文 （鹿児島県姶良郡湧水町中津川1733） | D88: 2024-09-09 | E88: ニッタン株式会社 東京都渋谷区笹塚1-54-5 | F88: 3011001017236 | G88: 一般競争入札 | H88: 12496000 | I88: 11000000 | J88: 0.88 | K88: 再度公告入札
A89: 86 | B89: 令和6年度下半期被収容者給食用食料品供給契約（31品目） | C89: 支出負担行為担当官 千葉刑務所長 倉田 克己 （千葉県千葉市若葉区貝塚町192） | D89: 2024-09-09 | E89: 株式会社鈴木食品 千葉県千葉市緑区大野台2-10-1 | F89: 3040001003565 | G89: 一般競争入札 | H89: 13097066 | I89: 11092833 | J89: 0.846 | K89: 単価契約
A90: 87 | B90: 令和6年度下半期被収容者給食用食料品供給契約（41品目） | C90: 支出負担行為担当官 千葉刑務所長 倉田 克己 （千葉県千葉市若葉区貝塚町192） | D90: 2024-09-09 | E90: 株式会社野口食品 神奈川県横浜市鶴見区大黒町9-4 | F90: 4020001018507 | G90: 一般競争入札 | H90: 14992029 | I90: 12503466 | J90: 0.834 | K90: 単価契約
A91: 88 | B91: 岐阜少年鑑別所矯正施設警備システム緊急整備一式 | C91: 支出負担行為担当官 岐阜少年鑑別所長 下原 正裕 （岐阜県岐阜市鷺山1769-20） | D91: 2024-09-09 | E91: アプロ通信株式会社 岐阜県岐阜市茜部菱野4-134 | F91: 4200001001378 | G91: 一般競争入札 | H91: 20708000 | I91: 17875000 | J91: 0.863
A92: 89 | B92: 名古屋合同庁舎第1号館ほか8施設において使用する電気の需給（高圧電力） | C92: 支出負担行為担当官 名古屋法務局長 加藤 裕 （愛知県名古屋市中区三の丸2-2-1） | D92: 2024-09-09 | E92: 岐阜電力株式会社 岐阜県岐阜市金町6-21 | F92: 9200001033292 | G92: 一般競争入札 | H92: 40561355 | I92: 30196075 | J92: 0.744 | K92: 単価契約 長期継続契約 共同調達（東海北陸厚生局、愛知労働局、中部運輸局、東海防衛支局） 予定価格総額 65,322,860円 契約金額総額 48,847,376円
A93: 90 | B93: 令和6年度第3四半期給食用食材（冷凍食品等）供給契約（豚小間肉1,200kgほか1品目） | C93: 支出負担行為担当官 府中刑務所長 八代 宏幸 （東京都府中市晴見町4-10） | D93: 2024-09-10 | E93: 株式会社ファインフーズ 東京都武蔵村山榎2-82-1 | F93: 9012801003072 | G93: 一般競争入札 | H93: 1749600 | I93: 1237680 | J93: 0.707 | K93: 単価契約
A94: 91 | B94: 令和6年度第3四半期給食用食材（冷凍食品等）供給契約（鮭 骨なしカット300kgほか2品目） | C94: 支出負担行為担当官 府中刑務所長 八代 宏幸 （東京都府中市晴見町4-10） | D94: 2024-09-10 | E94: 有限会社田口魚店 東京都立川市高松町1-29-5 | F94: 1012802006494 | G94: 一般競争入札 | H94: 1915650 | I94: 1548720 | J94: 0.808 | K94: 単価契約
A95: 92 | B95: 令和6年度第3四半期給食用食材（冷凍食品等）供給契約（マヨネーズ耐熱加工90kgほか16品目） | C95: 支出負担行為担当官 府中刑務所長 八代 宏幸 （東京都府中市晴見町4-10） | D95: 2024-09-10 | E95: 株式会社ふくしま 埼玉県川越市旭町2-21-26 | F95: 5030001055465 | G95: 一般競争入札 | H95: 2253458 | I95: 1701998 | J95: 0.755 | K95: 単価契約
A96: 93 | B96: 令和6年度松本少年刑務所被収容者用食料第3四半期供給契約（豚挽肉ほか4件） | C96: 支出負担行為担当官 松本少年刑務所長 中道 徹 （長野県松本市桐3-9-4） | D96: 2024-09-10 | E96: 信州セキュアフーズ株式会社 長野県松本市島内9842 | F96: 3100001025792 | G96: 一般競争入札 | H96: 1719079 | I96: 1713150 | J96: 0.996 | K96: 単価契約
A97: 94 | B97: 令和6年度第3四半期給食用食材（冷凍食品等）供給契約（うずら卵水煮864kgほか11品目） | C97: 支出負担行為担当官 府中刑務所長 八代 宏幸 （東京都府中市晴見町4-10） | D97: 2024-09-10 | E97: 東京カセー株式会社 神奈川県横須賀市根岸町1-2-22 | F97: 7021001040786 | G97: 一般競争入札 | H97: 2608397 | I97: 1841756 | J97: 0.706 | K97: 単価契約
A98: 95 | B98: 高周波リニアプローブの供給契約（1台） | C98: 支出負担行為担当官 東京拘置所長 柴﨑 正文 （東京都葛飾区小菅1-35-1） | D98: 2024-09-10 | E98: 株式会社メディセオ足立・葛飾支店 埼玉県三郷市上彦川戸852-1 | F98: 5010001087238 | G98: 一般競争入札 | H98: 2554794 | I98: 2112000 | J98: 0.826
A99: 96 | B99: 令和6年度網走刑務所下半期燃料油類供給契約（ガソリン2,900L・軽油9,800L） | C99: 支出負担行為担当官 網走刑務所長 中村 寛之 （北海道網走市字三眺） | D99: 2024-09-10 | E99: 北日本石油株式会社北見販売支店 北海道北見市花月町15-8 | F99: 5010001075985 | G99: 一般競争入札 | H99: 2130262 | I99: 2127072 | J99: 0.998 | K99: 単価契約
A100: 97 | B100: 東京出入国在留管理局長野出張所における自動車（ワゴン車）1台交換購入契約 | C100: 支出負担行為担当官 東京出入国在留管理局長 宮尾 芳彰 （東京都港区港南5-5-30） | D100: 2024-09-10 | E100: 株式会社愛知自動車総合サービス 愛知県碧南市新道町4-4 | F100: 7180301017181 | G100: 一般競争入札（総合評価落札方式） | H100: 3142520 | I100: 3059974 | J100: 0.973 | K100: 再度公告入札
A101: 98 | B101: 令和6年度第3四半期給食用食材（冷凍食品等）供給契約（ベーコンカット200kgほか1品目） | C101: 支出負担行為担当官 府中刑務所長 八代 宏幸 （東京都府中市晴見町4-10） | D101: 2024-09-10 | E101: 株式会社アンデス 東京都練馬区大泉町5-11-8 | F101: 5011601000358 | G101: 一般競争入札 | H101: 4843800 | I101: 3451680 | J101: 0.712 | K101: 単価契約
A102: 99 | B102: 令和6年度第3四半期給食用食材（冷凍食品等）供給契約（白身魚フライ320kgほか19品目） | C102: 支出負担行為担当官 府中刑務所長 八代 宏幸 （東京都府中市晴見町4-10） | D102: 2024-09-10 | E102: 大京食品株式会社 東京都中央区新川1-9-4 | F102: 3010001048828 | G102: 一般競争入札 | H102: 6378220 | I102: 4584880 | J102: 0.718 | K102: 単価契約
A103: 100 | B103: 令和6年度第3四半期給食用食材（冷凍食品等）供給契約（牛小間肉2,400kgほか1品目） | C103: 支出負担行為担当官 府中刑務所長 八代 宏幸 （東京都府中市晴見町4-10） | D103: 2024-09-10 | E103: 株式会社プレコフーズ 東京都大田区北千束1-3-5 | F103: 5010801013582 | G103: 一般競争入札 | H103: 6091200 | I103: 4644864 | J103: 0.762 | K103: 単価契約
A104: 101 | B104: 令和7年分タイトルシート作成業務契約 | C104: 支出負担行為担当官 大阪出入国在留管理局長 西山 良 （大阪府大阪市住之江区南港北1-29-53） | D104: 2024-09-10 | E104: 東洋印刷株式会社 京都府京都市伏見区中島中道町133 | F104: 3130001021789 | G104: 一般競争入札 | H104: 5805030 | I104: 4698622 | J104: 0.809 | K104: 単価契約
A105: 102 | B105: 処遇管理棟真空ポンプ分解整備一式 | C105: 支出負担行為担当官 宮城刑務所長 林 文彦 （宮城県仙台市古城2-3-1） | D105: 2024-09-10 | E105: 東北三建SE株式会社 宮城県仙台市青葉区本町1-13-22 | F105: 4370001011435 | G105: 一般競争入札 | H105: 5368000 | I105: 5225000 | J105: 0.973
A106: 103 | B106: 令和6年度第3四半期給食用食材（冷凍食品等）供給契約（鶏のから揚げ1,260kgほか2品目） | C106: 支出負担行為担当官 府中刑務所長 八代 宏幸 （東京都府中市晴見町4-10） | D106: 2024-09-10 | E106: マルイフーズ株式会社 東京都大田区東海3-2-7 | F106: 6010801011255 | G106: 一般競争入札 | H106: 9096624 | I106: 5898208 | J106: 0.648 | K106: 単価契約
A107: 104 | B107: 令和6年度第3四半期給食用食材（冷凍食品等）供給契約（チリソース379.08kgほか39品目） | C107: 支出負担行為担当官 府中刑務所長 八代 宏幸 （東京都府中市晴見町4-10） | D107: 2024-09-10 | E107: 株式会社鈴木屋 神奈川県横浜市中区上野町2-50 | F107: 3020001027153 | G107: 一般競争入札 | H107: 11860283 | I107: 8751987 | J107: 0.737 | K107: 単価契約
A108: 105 | B108: 令和6年度第3四半期給食用食材（冷凍食品等）供給契約（ねぎみそ42kgほか28品目） | C108: 支出負担行為担当官 府中刑務所長 八代 宏幸 （東京都府中市晴見町4-10） | D108: 2024-09-10 | E108: 株式会社名給立川営業所 東京都立川市西砂町5-4-3 | F108: 5180001022946 | G108: 一般競争入札 | H108: 12418358 | I108: 8756331 | J108: 0.705 | K108: 単価契約
A109: 106 | B109: 令和6年度第3四半期給食用食材（冷凍食品等）供給契約（冷凍ピーマン1,500kgほか16品目） | C109: 支出負担行為担当官 府中刑務所長 八代 宏幸 （東京都府中市晴見町4-10） | D109: 2024-09-10 | E109: 丸宮食品株式会社 埼玉県さいたま市見沼区卸町1-37 | F109: 4030001008028 | G109: 一般競争入札 | H109: 12133735 | I109: 9124311 | J109: 0.751 | K109: 単価契約
A110: 107 | B110: 令和6年度網走刑務所下半期白灯油供給契約（134,000L） | C110: 支出負担行為担当官 網走刑務所長 中村 寛之 （北海道網走市字三眺） | D110: 2024-09-10 | E110: ミナミ石油株式会社 北海道札幌市東区北34-東24-1-1 | F110: 7430001016549 | G110: 一般競争入札 | H110: 14887400 | I110: 13307540 | J110: 0.893 | K110: 単価契約
A111: 108 | B111: 入国審査官等合服男子用上衣ほか7品目の製造請負 一式 | C111: 支出負担行為担当官 出入国在留管理庁次長 杉山 徳明 （東京都千代田区霞が関1-1-1） | D111: 2024-09-10 | E111: 新陽株式会社 東京都千代田区神田東松下町39 | F111: 1010001045703 | G111: 一般競争入札 | H111: 35993456 | I111: 32924100 | J111: 0.914 | K111: 単価契約
A112: 109 | B112: 令和6年度網走刑務所下半期A重油供給契約（560,000L） | C112: 支出負担行為担当官 網走刑務所長 中村 寛之 （北海道網走市字三眺） | D112: 2024-09-10 | E112: ミナミ石油株式会社 北海道札幌市東区北34-東24-1-1 | F112: 7430001016549 | G112: 一般競争入札 | H112: 61092900 | I112: 55774620 | J112: 0.912 | K112: 単価契約
A113: 110 | B113: 全身用X線CT診断装置一式 | C113: 支出負担行為担当官 宮城刑務所長 林 文彦 （宮城県仙台市古城2-3-1） | D113: 2024-09-10 | E113: 株式会社シバタインテック 宮城県仙台市若林区卸町2-11-3 | F113: 2370001003186 | G113: 一般競争入札（総合評価落札方式） | H113: 123640000 | I113: 118140000 | J113: 0.955 | K113: 一括調達（広島刑務所）
A114: 111 | B114: 令和6年度京都刑務所等施設維持管理業務委託契約 | C114: 支出負担行為担当官 京都刑務所長 山﨑 宗則 （京都府京都市山科区井ノ上町20） | D114: 2024-09-11 | E114: 奈良県緑化土木協同組合 奈良県奈良市東紀寺2-8-8 | F114: 1150005000855 | G114: 一般競争入札 | H114: 2786300 | I114: 1386000 | J114: 0.497
A115: 112 | B115: 被収容者給食用倉庫品下半期分（干ししいたけ3mmスライス300kgほか8品目） | C115: 支出負担行為担当官 大分刑務所長 𫝆村 守 （大分県大分市畑中5-4-1） | D115: 2024-09-11 | E115: 有限会社鈴井園茶舗 宮城県仙台市太白区西多賀4-13-10 | F115: 2370002011700 | G115: 一般競争入札 | H115: 2133432 | I115: 1762251 | J115: 0.826 | K115: 単価契約
A116: 113 | B116: 令和6年度下半期被収容者用食料品供給単価契約（倉庫品）（11品目） | C116: 支出負担行為担当官 名古屋拘置所長 三角 渉 （愛知県名古屋市東区白壁1-1） | D116: 2024-09-11 | E116: 株式会社随喜産業 東京都新宿区上落合2-8-2 | F116: 2011101010356 | G116: 一般競争入札 | H116: 2231984 | I116: 1823103 | J116: 0.816 | K116: 単価契約
A117: 114 | B117: 被収容者給食用倉庫品下半期分（そうめん80kgほか16品目） | C117: 支出負担行為担当官 大分刑務所長 𫝆村 守 （大分県大分市畑中5-4-1） | D117: 2024-09-11 | E117: 尾家産業株式会社 大分県大分市新川町2-4-37 | F117: 5120001061479 | G117: 一般競争入札 | H117: 2711361 | I117: 2178794 | J117: 0.803 | K117: 単価契約
A118: 115 | B118: 令和6年度下半期分被収容者用食品単価契約（1品目） | C118: 支出負担行為担当官 徳島刑務所長 菊地 康司 （徳島県徳島市入田町大久200-1） | D118: 2024-09-11 | E118: 貞光食糧工業株式会社 徳島県美馬郡つるぎ町貞光字馬出43-10 | F118: 8490002014736 | G118: 一般競争入札 | H118: 2257200 | I118: 2181600 | J118: 0.966 | K118: 単価契約
A119: 116 | B119: 被収容者給食用倉庫品下半期分（ソフトピーナツ3000個ほか19品目） | C119: 支出負担行為担当官 大分刑務所長 𫝆村 守 （大分県大分市畑中5-4-1） | D119: 2024-09-11 | E119: 株式会社大給 大分県大分市大分流通業務団地1-1-2 | F119: 7320001001603 | G119: 一般競争入札 | H119: 2875813 | I119: 2271976 | J119: 0.79 | K119: 単価契約
A120: 117 | B120: 令和6年度下半期分被収容者用食品単価契約（1品目） | C120: 支出負担行為担当官 徳島刑務所長 菊地 康司 （徳島県徳島市入田町大久200-1） | D120: 2024-09-11 | E120: 玉屋製パン株式会社 徳島県徳島市国府町南岩延字南原1180-10 | F120: 2480001001063 | G120: 一般競争入札 | H120: 2452896 | I120: 2386800 | J120: 0.973 | K120: 単価契約
A121: 118 | B121: 被収容者給食用倉庫品下半期分（ビーフン90kgほか14品目） | C121: 支出負担行為担当官 大分刑務所長 𫝆村 守 （大分県大分市畑中5-4-1） | D121: 2024-09-11 | E121: 株式会社栗本五十市商店 大分県大分市萩原2-6-5 | F121: 5240001028433 | G121: 一般競争入札 | H121: 3354337 | I121: 2454314 | J121: 0.731 | K121: 単価契約
A122: 119 | B122: 令和6年度下半期分被収容者用食品単価契約（20品目） | C122: 支出負担行為担当官 徳島刑務所長 菊地 康司 （徳島県徳島市入田町大久200-1） | D122: 2024-09-11 | E122: 株式会社池田商店 香川県仲多度郡琴平町五條488-2 | F122: 7470001008311 | G122: 一般競争入札 | H122: 2491452 | I122: 2491452 | J122: 1 | K122: 単価契約
A123: 120 | B123: 令和6年度下半期被収容者用食料品供給単価契約（倉庫品）（17品目） | C123: 支出負担行為担当官 名古屋拘置所長 三角 渉 （愛知県名古屋市東区白壁1-1） | D123: 2024-09-11 | E123: 株式会社ニシヤマ 愛知県豊田市栄生町1-29 | F123: 2180301019067 | G123: 一般競争入札 | H123: 3505719 | I123: 2577443 | J123: 0.735 | K123: 単価契約
A124: 121 | B124: 被収容者給食用倉庫品下半期分（こむぎ170kgほか31品目） | C124: 支出負担行為担当官 大分刑務所長 𫝆村 守 （大分県大分市畑中5-4-1） | D124: 2024-09-11 | E124: 株式会社山丁 大分県由布市湯布院町川南1669-1 | F124: 8320001004092 | G124: 一般競争入札 | H124: 3208820 | I124: 2578565 | J124: 0.803 | K124: 単価契約
A125: 122 | B125: タイトルシート（令和7年用）製造請負契約 | C125: 支出負担行為担当官代理 名古屋出入国在留管理局次長 小山 裕美 （愛知県名古屋市港区正保町5-18） | D125: 2024-09-11 | E125: 共生印刷株式会社 愛知県名古屋市中区新栄2-11-6 | F125: 2180001035488 | G125: 一般競争入札 | H125: 3871106 | I125: 2643142 | J125: 0.682
A126: 123 | B126: 令和6年度下半期分被収容者用食品単価契約（3品目） | C126: 支出負担行為担当官 徳島刑務所長 菊地 康司 （徳島県徳島市入田町大久200-1） | D126: 2024-09-11 | E126: 株式会社肉の藤原 徳島県徳島市仲之町3-10 | F126: 9480001003573 | G126: 一般競争入札 | H126: 3839400 | I126: 2883600 | J126: 0.751 | K126: 単価契約
A127: 124 | B127: 令和6年度下半期被収容者用食料品供給単価契約（倉庫品）（25品目） | C127: 支出負担行為担当官 名古屋拘置所長 三角 渉 （愛知県名古屋市東区白壁1-1） | D127: 2024-09-11 | E127: 有限会社鈴井園茶舗 宮城県仙台市太白区西多賀4-13-10 | F127: 2370002011700 | G127: 一般競争入札 | H127: 3244636 | I127: 2925836 | J127: 0.901 | K127: 単価契約
A128: 125 | B128: 令和6年度下半期被収容者主食用パン供給契約（2品目） | C128: 支出負担行為担当官 千葉刑務所長 倉田 克己 （千葉県千葉市若葉区貝塚町192） | D128: 2024-09-11 | E128: 有限会社梅香堂 千葉県市原市大坪1057-5 | F128: 2040002074706 | G128: 一般競争入札 | H128: 3521698 | I128: 3496051 | J128: 0.992 | K128: 単価契約
A129: 126 | B129: 横浜刑務所印刷工場断裁機小型一式更新整備契約 | C129: 支出負担行為担当官 横浜刑務所長 小嶌 一平 （神奈川県横浜市港南区港南4-2-2） | D129: 2024-09-11 | E129: 株式会社光文堂東京支社 東京都北区上中里2-5-9 | F129: 6180001035798 | G129: 一般競争入札 | H129: 4330700 | I129: 3939100 | J129: 0.909
A130: 127 | B130: 福島刑務支所全自動散薬分包機更新整備契約一式 | C130: 支出負担行為担当官 福島刑務所長 髙野 洋一 （福島県福島市南沢又字上原1） | D130: 2024-09-11 | E130: 株式会社シバタインテック福島営業所 福島県福島市松山町79 | F130: 2370001003186 | G130: 一般競争入札 | H130: 5902578 | I130: 4620000 | J130: 0.782
A131: 128 | B131: 横浜刑務所印刷工場無線綴機一式更新整備契約 | C131: 支出負担行為担当官 横浜刑務所長 小嶌 一平 （神奈川県横浜市港南区港南4-2-2） | D131: 2024-09-11 | E131: 株式会社光文堂東京支社 東京都北区上中里2-5-9 | F131: 6180001035798 | G131: 一般競争入札 | H131: 6727600 | I131: 5519800 | J131: 0.82
A132: 129 | B132: 令和6年度第3四半期被収容者給食用食肉供給契約（9品目） | C132: 支出負担行為担当官 千葉刑務所長 倉田 克己 （千葉県千葉市若葉区貝塚町192） | D132: 2024-09-11 | E132: 有限会社キャプテンフーズ 千葉県八千代市吉橋1185-17 | F132: 1040002021683 | G132: 一般競争入札 | H132: 7253050 | I132: 5649695 | J132: =IFERROR(ROUNDDOWN(I132/H132,3),"-") -> 0.778 | K132: 単価契約
A133: 130 | B133: 令和6年度下半期分被収容者用食品単価契約（79品目） | C133: 支出負担行為担当官 徳島刑務所長 菊地 康司 （徳島県徳島市入田町大久200-1） | D133: 2024-09-11 | E133: 株式会社RCフードサービス 徳島県徳島市東沖洲2-66 | F133: 7480001003303 | G133: 一般競争入札 | H133: 9929301 | I133: 7278976 | J133: 0.733 | K133: 単価契約
A134: 131 | B134: 横浜刑務所印刷工場断裁機大型一式更新整備契約 | C134: 支出負担行為担当官 横浜刑務所長 小嶌 一平 （神奈川県横浜市港南区港南4-2-2） | D134: 2024-09-11 | E134: 株式会社光文堂東京支社 東京都北区上中里2-5-9 | F134: 6180001035798 | G134: 一般競争入札 | H134: 14649800 | I134: 9790000 | J134: 0.668
A135: 132 | B135: 第64回全国矯正展（全国刑務所作業製品展示即売会）に係る会場装飾業務一式 | C135: 支出負担行為担当官 府中刑務所長 八代 宏幸 （東京都府中市晴見町4-10） | D135: 2024-09-11 | E135: 株式会社エヌ・エイチ・ケイ・アート 東京都渋谷区富ヶ谷1-14-7 | F135: 5011001003969 | G135: 一般競争入札 | H135: 13666215 | I135: 12681900 | J135: 0.927
A136: 133 | B136: 令和5年度鹿児島少年鑑別所少年保安システム更新整備契約一式 | C136: 支出負担行為担当官 鹿児島少年鑑別所長 立川 晃司 （鹿児島県鹿児島市唐湊3-3-5） | D136: 2024-09-11 | E136: 南国情報サービス株式会社 鹿児島県鹿児島市鴨池新町14-10 | F136: 8340001003200 | G136: 一般競争入札 | H136: 18436000 | I136: 16720000 | J136: 0.906
A137: 134 | B137: 食料品供給単価契約（13品目） | C137: 支出負担行為担当官 岐阜刑務所長 前田 昌幸 （岐阜県岐阜市則松1-34-1） | D137: 2024-09-12 | E137: 有限会社つちや 岐阜県瑞穂市十九条805 | F137: 4200002009619 | G137: 一般競争入札 | H137: 1621242 | I137: 1534572 | J137: 0.946 | K137: 単価契約
A138: 135 | B138: 被収容者給食用食材三か月分（ウインナーソーセージ68kgほか21品目） | C138: 支出負担行為担当官 大分刑務所長 𫝆村 守 （大分県大分市畑中5-4-1） | D138: 2024-09-12 | E138: 株式会社栗本五十市商店 大分県大分市萩原2-6-5 | F138: 5240001028433 | G138: 一般競争入札 | H138: 2160286 | I138: 1699659 | J138: 0.786 | K138: 単価契約
A139: 136 | B139: 食料品供給単価契約（3品目） | C139: 支出負担行為担当官 岐阜刑務所長 前田 昌幸 （岐阜県岐阜市則松1-34-1） | D139: 2024-09-12 | E139: 株式会社シティフーズ 岐阜県岐阜市茜部中島2-45-1 | F139: 8200001002488 | G139: 一般競争入札 | H139: 1797120 | I139: 1797120 | J139: 1 | K139: 単価契約
A140: 137 | B140: 被収容者給食用食材三か月分（カニ風味フレーク103kgほか18品目） | C140: 支出負担行為担当官 大分刑務所長 𫝆村 守 （大分県大分市畑中5-4-1） | D140: 2024-09-12 | E140: 株式会社三久 大分県大分市大字三芳689-4 | F140: 1320001001212 | G140: 一般競争入札 | H140: 2373030 | I140: 1958069 | J140: 0.825 | K140: 単価契約
A141: 138 | B141: 食料品供給単価契約（13品目） | C141: 支出負担行為担当官 岐阜刑務所長 前田 昌幸 （岐阜県岐阜市則松1-34-1） | D141: 2024-09-12 | E141: 株式会社金定 岐阜県羽島郡笠松町円城寺16-2 | F141: 2200001010892 | G141: 一般競争入札 | H141: 2544339 | I141: 2072325 | J141: 0.814 | K141: 単価契約
A142: 139 | B142: 令和6年度乗用自動車（1台）交換契約 | C142: 支出負担行為担当官 新潟地方法務局長 横井 秀行 （新潟県新潟市中央区西大畑町5191） | D142: 2024-09-12 | E142: 株式会社愛知自動車総合サービス 愛知県碧南市新道町4-4 | F142: 7180301017181 | G142: 一般競争入札（総合評価落札方式） | H142: 3678921 | I142: 3192450 | J142: 0.867
A143: 140 | B143: 被収容者給食用食材三か月分（白身フライ冷凍1500個ほか29品目） | C143: 支出負担行為担当官 大分刑務所長 𫝆村 守 （大分県大分市畑中5-4-1） | D143: 2024-09-12 | E143: 株式会社大給 大分県大分市大分流通業務団地1-1-2 | F143: 7320001001603 | G143: 一般競争入札 | H143: 5515462 | I143: 4216035 | J143: 0.764 | K143: 単価契約
A144: 141 | B144: 令和6年度下半期精麦供給単価契約（21,600㎏） | C144: 支出負担行為担当官 名古屋刑務所長 吉弘 基成 （愛知県みよし市ひばりヶ丘1-1） | D144: 2024-09-12 | E144: 豊橋糧食工業株式会社 愛知県豊橋市入船町33 | F144: 3180301006634 | G144: 一般競争入札 | H144: 5062176 | I144: 4408992 | J144: 0.87 | K144: 単価契約
A145: 142 | B145: 名古屋刑務所「第34回東海北陸・みよし矯正展」業務委託契約 | C145: 支出負担行為担当官 名古屋刑務所長 吉弘 基成 （愛知県みよし市ひばりヶ丘1-1） | D145: 2024-09-12 | E145: 株式会社ライフサービス東海 愛知県豊田市元宮町2-26 | F145: 1180301019555 | G145: 一般競争入札 | H145: 5111000 | I145: 4785000 | J145: 0.936
A146: 143 | B146: 被収容者給食用食材三か月分（牛もも173kgほか31品目） | C146: 支出負担行為担当官 大分刑務所長 𫝆村 守 （大分県大分市畑中5-4-1） | D146: 2024-09-12 | E146: 株式会社山丁 大分県由布市湯布院町川南1669-1 | F146: 8320001004092 | G146: 一般競争入札 | H146: 7137687 | I146: 5612485 | J146: 0.786 | K146: 単価契約
A147: 144 | B147: 令和6年度下半期分精麦購入単価契約（1件） | C147: 支出負担行為担当官 大阪拘置所長 和田 浩史 （大阪府大阪市都島区友渕町1-2-5） | D147: 2024-09-12 | E147: 三喜グループ株式会社 奈良県大和高田市三和町17-19 | F147: 7150001013483 | G147: 一般競争入札 | H147: 6431040 | I147: 5844960 | J147: 0.908 | K147: 単価契約
A148: 145 | B148: 食料品供給単価契約（67品目） | C148: 支出負担行為担当官 岐阜刑務所長 前田 昌幸 （岐阜県岐阜市則松1-34-1） | D148: 2024-09-12 | E148: 株式会社ジーケーエス 岐阜県岐阜市柳津町流通センター1-6-3 | F148: 9200001008030 | G148: 一般競争入札 | H148: 8412174 | I148: 6886500 | J148: 0.818 | K148: 単価契約
A149: 146 | B149: 食料品供給単価契約（49品目） | C149: 支出負担行為担当官 岐阜刑務所長 前田 昌幸 （岐阜県岐阜市則松1-34-1） | D149: 2024-09-12 | E149: 有限会社鈴井園茶舗 宮城県仙台市太白区西多賀4-13-10 | F149: 2370002011700 | G149: 一般競争入札 | H149: 7992648 | I149: 7224045 | J149: 0.903 | K149: 単価契約
A150: 147 | B150: 食料品供給単価契約（18品目） | C150: 支出負担行為担当官 岐阜刑務所長 前田 昌幸 （岐阜県岐阜市則松1-34-1） | D150: 2024-09-12 | E150: 株式会社ワールドグルメハウス丸髙食品 岐阜県瑞穂市馬場春雨町1-46 | F150: 7200001010293 | G150: 一般競争入札 | H150: 19220760 | I150: 14808020 | J150: 0.77 | K150: 単価契約
A151: 148 | B151: 食料品供給単価契約（159品目） | C151: 支出負担行為担当官 岐阜刑務所長 前田 昌幸 （岐阜県岐阜市則松1-34-1） | D151: 2024-09-12 | E151: 株式会社大光 岐阜県大垣市古宮町227-1 | F151: 6200001013834 | G151: 一般競争入札 | H151: 24282940 | I151: 18899736 | J151: 0.778 | K151: 単価契約
A152: 149 | B152: 令和6年度被収容者用食糧品後期（2品目） | C152: 支出負担行為担当官代理 山口刑務所総務部長 国土 光一 （山口県山口市松美町3-75） | D152: 2024-09-13 | E152: 正ちゃんコロッケ株式会社 山口県山口市銭湯小路15 | F152: 2250001000311 | G152: 一般競争入札 | H152: 2592952 | I152: 1081166 | J152: 0.416 | K152: 単価契約
A153: 150 | B153: 令和6年度被収容者用食糧品後期（1品目） | C153: 支出負担行為担当官代理 山口刑務所総務部長 国土 光一 （山口県山口市松美町3-75） | D153: 2024-09-13 | E153: 中島精麦工業株式会社 福岡県久留米市津福今町586 | F153: 1290001049288 | G153: 一般競争入札 | H153: 2948400 | I153: 1263600 | J153: 0.428 | K153: 単価契約
A154: 151 | B154: 令和6年度被収容者用食糧品後期（15品目） | C154: 支出負担行為担当官代理 山口刑務所総務部長 国土 光一 （山口県山口市松美町3-75） | D154: 2024-09-13 | E154: 株式会社ストアーなかむら 山口県山口市矢原744-7 | F154: 9250001019279 | G154: 一般競争入札 | H154: 2548105 | I154: 1300409 | J154: 0.51 | K154: 単価契約
A155: 152 | B155: 令和6年度後期松江刑務所被収容者用食料品購入契約（23品目） | C155: 支出負担行為担当官 松江刑務所長 出雲路 朗 （島根県松江市西川津町67） | D155: 2024-09-13 | E155: 有限会社鈴井園茶舗 宮城県仙台市太白区西多賀4-13-10 | F155: 2370002011700 | G155: 一般競争入札 | H155: 1816047 | I155: 1717962 | J155: 0.945 | K155: 単価契約
A156: 153 | B156: 令和6年度リフレクティングルーム整備契約 | C156: 支出負担行為担当官 松山刑務所長 今井 康浩 （愛媛県東温市見奈良1243-2） | D156: 2024-09-13 | E156: 株式会社タムラ工務店 愛媛県松山市苞木甲253 | F156: 2500001010961 | G156: 一般競争入札 | H156: 2108700 | I156: 1904100 | J156: 0.902
A157: 154 | B157: 令和6年度被収容者用食糧品後期（6品目） | C157: 支出負担行為担当官代理 山口刑務所総務部長 国土 光一 （山口県山口市松美町3-75） | D157: 2024-09-13 | E157: 株式会社丸秀精肉店 山口県山口市小郡下郷1421 | F157: 1250001018296 | G157: 一般競争入札 | H157: 4692559 | I157: 2185766 | J157: 0.465 | K157: 単価契約
A158: 155 | B158: 令和6年度広島刑務所尾道刑務支所電話交換機更新整備一式 | C158: 支出負担行為担当官 広島刑務所長 宮本 良一 （広島県広島市中区吉島町13-114） | D158: 2024-09-13 | E158: 三菱電機システムサービス株式会社 東京都世田谷区太子堂4-1-1 | F158: 1010901011705 | G158: 一般競争入札 | H158: 5361400 | I158: 2750000 | J158: 0.512
A159: 156 | B159: 複合機供給契約等一式（7台） | C159: 支出負担行為担当官 札幌出入国在留管理局長 礒部 哲郎 （北海道札幌市中央区大通西12） | D159: 2024-09-13 | E159: 富士フイルムビジネスイノベーションジャパン株式会社北海道支社 北海道札幌市中央区大通西6-1 | F159: 1011101015050 | G159: 一般競争入札 | H159: 5505165 | I159: 2975451 | J159: 0.54 | K159: 単価契約 保守料を含む。 本体価格合計 1,992,790円 保守料 982,661円
A160: 157 | B160: 令和6年度被収容者用食糧品後期（64品目） | C160: 支出負担行為担当官代理 山口刑務所総務部長 国土 光一 （山口県山口市松美町3-75） | D160: 2024-09-13 | E160: 株式会社ニシムラ 広島県広島市西区商工センター5-13-10 | F160: 6240001008392 | G160: 一般競争入札 | H160: 6619873 | I160: 3508366 | J160: 0.529 | K160: 単価契約
A161: 158 | B161: 令和6年度被収容者用食糧品後期（68品目） | C161: 支出負担行為担当官代理 山口刑務所総務部長 国土 光一 （山口県山口市松美町3-75） | D161: 2024-09-13 | E161: 株式会社協食 山口県山陽小野田市大字厚狭368 | F161: 3250001003882 | G161: 一般競争入札 | H161: 8666447 | I161: 4693366 | J161: 0.541 | K161: 単価契約
A162: 159 | B162: 国際仲裁に係る会議運営等業務の委託 一式 | C162: 支出負担行為担当官 法務省大臣官房会計課長 村松 秀樹 （東京都千代田区霞が関1-1-1） | D162: 2024-09-13 | E162: 株式会社ABELON 東京都新宿区市谷加賀町2-3-16 | F162: 6040001097893 | G162: 一般競争入札 | H162: 8982748 | I162: 4950000 | J162: 0.551
A163: 160 | B163: 令和6年度徳島地方検察庁新庁舎移転業務一式請負契約 | C163: 支出負担行為担当官代理 徳島地方検察庁次席検事 田村 志保 （徳島県徳島市徳島町2-17） | D163: 2024-09-13 | E163: 佐川急便株式会社 京都府京都市南区上鳥羽角田町68 | F163: 8130001000053 | G163: 一般競争入札 | H163: 9766212 | I163: 6435000 | J163: 0.658
A164: 161 | B164: 令和6年度後期松江刑務所被収容者用食料品購入契約（94品目） | C164: 支出負担行為担当官 松江刑務所長 出雲路 朗 （島根県松江市西川津町67） | D164: 2024-09-13 | E164: 尾家産業株式会社 大阪府大阪市北区豊崎6-11-27 | F164: 5120001061479 | G164: 一般競争入札 | H164: 7497349 | I164: 7428549 | J164: 0.99 | K164: 単価契約
A165: 162 | B165: 令和6年度後期松江刑務所被収容者用食料品購入契約（106品目） | C165: 支出負担行為担当官 松江刑務所長 出雲路 朗 （島根県松江市西川津町67） | D165: 2024-09-13 | E165: 株式会社さんれいフーズ 鳥取県米子市旗ヶ崎2147 | F165: 4270001003293 | G165: 一般競争入札 | H165: 7508027 | I165: 7508027 | J165: 1 | K165: 単価契約
A166: 163 | B166: 令和6年度徳島保護観察所移転にかかる事務所用什器類等の物品供給契約（90品目、354品） | C166: 支出負担行為担当官 四国地方更生保護委員会委員長 辻 裕子 （香川県高松市丸の内1-1） | D166: 2024-09-13 | E166: 株式会社サカノ 徳島県徳島市南内町1-40-2 | F166: 5480001000723 | G166: 一般競争入札 | H166: 16427009 | I166: 10338680 | J166: 0.629
A167: 164 | B167: 令和6年度富山刑務所電話交換設備等更新整備契約一式 | C167: 支出負担行為担当官 富山刑務所長 小阪 知晃 （富山県富山市西荒屋285-1） | D167: 2024-09-13 | E167: 株式会社ほくつう 石川県金沢市問屋町1-65 | F167: 6220001006381 | G167: 一般競争入札 | H167: 13283600 | I167: 12980000 | J167: 0.977
A168: 165 | B168: 戸籍情報連携システム（副本管理セグメント）用電算室の空調機器のオーバーホール作業の請負 一式 | C168: 支出負担行為担当官 法務省大臣官房会計課長 村松 秀樹 （東京都千代田区霞が関1-1-1） | D168: 2024-09-13 | E168: 富士古河E&C株式会社 神奈川県川崎市幸区堀川町580 | F168: 6020001077096 | G168: 一般競争入札 | H168: 20490003 | I168: 20350000 | J168: 0.993
A169: 166 | B169: 令和6年度下半期葛城拘置支所、奈良拘置支所、奈良少年鑑別所弁当調達契約（朝食、昼食、夕食 各37,674食） | C169: 支払負担行為担当官 京都拘置所長 松谷 憲一 （京都府京都市伏見区竹田向代町138） | D169: 2024-09-13 | E169: 株式会社料理かしば 奈良県香芝市上中536 | F169: 5150001013700 | G169: 一般競争入札 | H169: 21564597 | I169: 21293344 | J169: 0.987 | K169: 単価契約 一括調達（奈良少年鑑別所）
A170: 167 | B170: 刑務官冬制帽記章ほかの供給一式 | C170: 支出負担行為担当官代理 東京拘置所総務部長 川村 祐樹 （東京都葛飾区小菅1-35-1） | D170: 2024-09-13 | E170: イズミ産業株式会社 東京都中央区日本橋富沢町5-4 | F170: 9010001000634 | G170: 一般競争入札 | H170: 35733346 | I170: 35662077 | J170: 0.998
A171: 168 | B171: 法務教官等冬制服の供給一式 | C171: 支出負担行為担当官代理 東京拘置所総務部長 川村 祐樹 （東京都葛飾区小菅1-35-1） | D171: 2024-09-13 | E171: 信和株式会社 東京都新宿区市谷本村町2-5 | F171: 3011101058122 | G171: 一般競争入札 | H171: 41619446 | I171: 40329300 | J171: 0.969
A172: 169 | B172: 戸籍情報取得サーバの登記情報システム向け連携アプリケーション機能開発業務の請負 一式 | C172: 支出負担行為担当官 法務省大臣官房会計課長 村松 秀樹 （東京都千代田区霞が関1-1-1） | D172: 2024-09-13 | E172: 富士通株式会社 神奈川県川崎市幸区大宮町1-5 | F172: 1020001071491 | G172: 一般競争入札（総合評価落札方式） | H172: 149227859 | I172: 148962000 | J172: 0.998 | K172: 国庫債務負担行為
A173: 170 | B173: 令和6年度被収容者食料品供給契約（乾物等5品） | C173: 支出負担行為担当官 川越少年刑務所長 北川 統之 （埼玉県川越市南大塚6-40-1） | D173: 2024-09-17 | E173: 株式会社随喜産業 東京都新宿区上落合2-8-2 | F173: 2011101010356 | G173: 一般競争入札 | H173: 1787806.744 | I173: 1218827.582 | J173: 0.681 | K173: 単価契約
A174: 171 | B174: 令和6年度沖縄刑務所第3四半期冷凍食品類物品供給契約（16品目） | C174: 支出負担行為担当官 沖縄刑務所長 中村 志郎 （沖縄県南城市知念字具志堅330） | D174: 2024-09-17 | E174: 大伸株式会社 沖縄県浦添市西洲2-9-8 | F174: 7360001008917 | G174: 一般競争入札 | H174: 1968840 | I174: 1333087 | J174: 0.677 | K174: 単価契約
A175: 172 | B175: 大阪刑務所通訳・翻訳派遣契約（3言語） | C175: 支出負担行為担当官 大阪刑務所長 谷口 晃康 （大阪府堺市堺区田出井町6-1） | D175: 2024-09-17 | E175: 株式会社プロスパーコーポレーション 大阪府大阪市北区西天満5-13-3 | F175: 1120001070112 | G175: 一般競争入札 | H175: 1663200 | I175: 1386000 | J175: 0.833 | K175: 単価契約
A176: 173 | B176: 令和6年度沖縄刑務所第3四半期冷凍食品類物品供給契約（11品目） | C176: 支出負担行為担当官 沖縄刑務所長 中村 志郎 （沖縄県南城市知念字具志堅330） | D176: 2024-09-17 | E176: 有限会社東亜フーズサービス 沖縄県中頭郡西原町字小那覇1067 | F176: 3360002002963 | G176: 一般競争入札 | H176: 1955070 | I176: 1754136 | J176: 0.897 | K176: 単価契約
A177: 174 | B177: 令和6年度第3四半期長野刑務所被収容者副食用食材（冷凍食品等）供給契約（15品目） | C177: 支出負担行為担当官 長野刑務所長 関原 隆男 （長野県須坂市大字須坂1200） | D177: 2024-09-17 | E177: 有限会社アルファ 長野県須坂市大字栃倉101-16 | F177: 5100002008225 | G177: 一般競争入札 | H177: 2289244 | I177: 1822591 | J177: 0.796 | K177: 単価契約
A178: 175 | B178: 令和6年度第3四半期長野刑務所被収容者副食用食材（冷凍食品等）供給契約（16品目） | C178: 支出負担行為担当官 長野刑務所長 関原 隆男 （長野県須坂市大字須坂1200） | D178: 2024-09-17 | E178: 株式会社大伸 長野県須坂市大字幸高253-35 | F178: 7100001005634 | G178: 一般競争入札 | H178: 2043042 | I178: 1851934 | J178: 0.906 | K178: 単価契約
A179: 176 | B179: 令和6年度沖縄刑務所下半期倉庫品（缶詰、調味料等）物品供給契約（31品目） | C179: 支出負担行為担当官 沖縄刑務所長 中村 志郎 （沖縄県南城市知念字具志堅330） | D179: 2024-09-17 | E179: 株式会社仲松商事 沖縄県沖縄市住吉2-28-30 | F179: 4360002012136 | G179: 一般競争入札 | H179: 2549475 | I179: 1940009 | J179: 0.76 | K179: 単価契約
A180: 177 | B180: 「無戸籍問題及び相談窓口」周知用動画コンテンツ制作の請負 一式 | C180: 支出負担行為担当官 法務省大臣官房会計課長 村松 秀樹 （東京都千代田区霞が関1-1-1） | D180: 2024-09-17 | E180: 株式会社バード 東京都中央区日本橋室町1-11-12 | F180: 7010001245248 | G180: 一般競争入札（総合評価落札方式） | H180: 2069221 | I180: 1966800 | J180: 0.95
A181: 178 | B181: 令和6年度沖縄刑務所下半期倉庫品（缶詰、調味料等）物品供給契約（30品目） | C181: 支出負担行為担当官 沖縄刑務所長 中村 志郎 （沖縄県南城市知念字具志堅330） | D181: 2024-09-17 | E181: 株式会社池原商事 沖縄県浦添市西洲2-4-1 | F181: 9360001008436 | G181: 一般競争入札 | H181: 2675270 | I181: 2109802 | J181: 0.788 | K181: 単価契約
A182: 179 | B182: 令和6年度第3四半期給食用食材（缶詰・調味料等）供給契約（鰹昆布だし250kgほか15品目） | C182: 支出負担行為担当官 府中刑務所長 八代 宏幸 （東京都府中市晴見町4-10） | D182: 2024-09-17 | E182: 株式会社鈴木屋 神奈川県横浜市中区上野町2-50 | F182: 3020001027153 | G182: 一般競争入札 | H182: 2942870 | I182: 2195369 | J182: 0.745 | K182: 単価契約
A183: 180 | B183: 令和6年度被収容者食料品供給契約（乾物等7品） | C183: 支出負担行為担当官 川越少年刑務所長 北川 統之 （埼玉県川越市南大塚6-40-1） | D183: 2024-09-17 | E183: 昭和企画株式会社 岐阜県各務原市各務東町1-47 | F183: 5200001007143 | G183: 一般競争入札 | H183: 2701318.883 | I183: 2367560.218 | J183: 0.876 | K183: 単価契約
A184: 181 | B184: 室蘭法務総合庁舎吸収式冷温水器部品交換等業務請負契約 | C184: 支出負担行為担当官 札幌地方検察庁検事正 木下 雅博 （北海道札幌市中央区大通西12） | D184: 2024-09-17 | E184: ジョンソンコントロールズ株式会社北海道支店 北海道札幌市中央区北4-東2-8-2 | F184: 8011001046081 | G184: 一般競争入札 | H184: 2497000 | I184: 2420000 | J184: 0.969 | K184: 一括調達（北海道地方更生保護委員会）
A185: 182 | B185: 令和6年度第3四半期長野刑務所被収容者副食用食材（冷凍食品等）供給契約（30品目） | C185: 支出負担行為担当官 長野刑務所長 関原 隆男 （長野県須坂市大字須坂1200） | D185: 2024-09-17 | E185: 株式会社ナガレイ 長野県長野市若穂綿内字東山1136-28 | F185: 1100001001333 | G185: 一般競争入札 | H185: 3910449 | I185: 3459216 | J185: 0.884 | K185: 単価契約
A186: 183 | B186: 令和6年度下半期長野刑務所被収容者副食用食材（惣菜等）供給契約（39品目） | C186: 支出負担行為担当官 長野刑務所長 関原 隆男 （長野県須坂市大字須坂1200） | D186: 2024-09-17 | E186: 株式会社大伸 長野県須坂市大字幸高253-35 | F186: 7100001005634 | G186: 一般競争入札 | H186: 4602476 | I186: 4029844 | J186: 0.875 | K186: 単価契約
A187: 184 | B187: 令和6年度被収容者食料品供給契約（乾物等15品） | C187: 支出負担行為担当官 川越少年刑務所長 北川 統之 （埼玉県川越市南大塚6-40-1） | D187: 2024-09-17 | E187: 株式会社名給 東京都立川市西砂5-4-3 | F187: 5180001022946 | G187: 一般競争入札 | H187: 4796025.469 | I187: 4041069.669 | J187: 0.842 | K187: 単価契約
A188: 185 | B188: 令和6年度被収容者食料品供給契約（乾物等36品） | C188: 支出負担行為担当官 川越少年刑務所長 北川 統之 （埼玉県川越市南大塚6-40-1） | D188: 2024-09-17 | E188: 株式会社大和商会 大阪府堺市北区東三国ヶ丘町5-4-15 | F188: 6120101004238 | G188: 一般競争入札 | H188: 4811726.702 | I188: 4184870.761 | J188: 0.869 | K188: 単価契約
A189: 186 | B189: 少年院在院者に対するプログラミングを活用した効果的な課題解決型授業に係る調査研究業務の請負 一式 | C189: 支出負担行為担当官 法務省大臣官房会計課長 村松 秀樹 （東京都千代田区霞が関1-1-1） | D189: 2024-09-17 | E189: ソニーマーケティング株式会社 東京都港区港南1-7-1 | F189: 2010401032358 | G189: 一般競争入札（総合評価落札方式） | H189: 4802000 | I189: 4400000 | J189: 0.916
A190: 187 | B190: 令和6年度被収容者食料品供給契約（乾物等1品） | C190: 支出負担行為担当官 川越少年刑務所長 北川 統之 （埼玉県川越市南大塚6-40-1） | D190: 2024-09-17 | E190: 株式会社イトーセーブ 埼玉県川越市脇田新町10-14 | F190: 6030001054334 | G190: 一般競争入札 | H190: 5562096.66 | I190: 4558738.047 | J190: 0.819 | K190: 単価契約
A191: 188 | B191: 令和6年度被収容者食料品供給契約（乾物等28品） | C191: 支出負担行為担当官 川越少年刑務所長 北川 統之 （埼玉県川越市南大塚6-40-1） | D191: 2024-09-17 | E191: 有限会社鈴井園茶舗 宮城県仙台市太白区西多賀4-13-10 | F191: 2370002011700 | G191: 一般競争入札 | H191: 5877369.038 | I191: 4911225.882 | J191: 0.835 | K191: 単価契約
A192: 189 | B192: 令和6年度被収容者食料品供給契約（乾物等21品） | C192: 支出負担行為担当官 川越少年刑務所長 北川 統之 （埼玉県川越市南大塚6-40-1） | D192: 2024-09-17 | E192: 丸宮食品株式会社 埼玉県さいたま市見沼区卸町1-37 | F192: 4030001008028 | G192: 一般競争入札 | H192: 8003731.649 | I192: 4986321.729 | J192: 0.622 | K192: 単価契約
A193: 190 | B193: 札幌地方検察庁電動式移動書架更新業務請負契約 | C193: 支出負担行為担当官 札幌地方検察庁検事正 木下 雅博 （北海道札幌市中央区大通西12） | D193: 2024-09-17 | E193: 株式会社クマヒラ 東京都中央区日本橋室町2-1-1 | F193: 2430001009193 | G193: 一般競争入札 | H193: 9976450 | I193: 7227000 | J193: 0.724
A194: 191 | B194: 令和6年度島根あさひ社会復帰促進センター高速道路跨道橋定期点検業務 | C194: 支出負担行為担当官 島根あさひ社会復帰促進センター長 蒔山 貴文 （島根県浜田市旭町丸原380-15） | D194: 2024-09-18 | E194: 株式会社ウエスコ浜田支店 島根県浜田市黒川町328-1 | F194: 4260001000622 | G194: 一般競争入札 | H194: 1914000 | I194: 1100000 | J194: 0.574
A195: 192 | B195: 令和6年度第3四半期多摩地区矯正施設自動車用燃料等供給契約（レギュラーガソリン6,000L、軽油6,600L） | C195: 支出負担行為担当官 府中刑務所長 八代 宏幸 （東京都府中市晴見町4-10） | D195: 2024-09-18 | E195: 出光リテール販売株式会社ファインオイル東日本カンパニー 東京都江東区深川2-8-19 | F195: 2010001126403 | G195: 一般競争入札 | H195: 2237334 | I195: 1896774 | J195: 0.847 | K195: 単価契約 一括調達（立川拘置所、東日本成人矯正医療センター、愛光女子学園）
A196: 193 | B196: 令和6年度下半期翻訳・通訳派遣契約（タイ語、タガログ語、ベトナム語） | C196: 支出負担行為担当官 和歌山刑務所長 三木 直美 （和歌山県和歌山市加納383） | D196: 2024-09-18 | E196: 株式会社阪急トラベルサポート 大阪府大阪市北区梅田2-5-25 | F196: 5120001069217 | G196: 一般競争入札 | H196: 2247850 | I196: 1956050 | J196: =IFERROR(ROUNDDOWN(I196/H196,3),"-") -> 0.87 | K196: 単価契約
A197: 194 | B197: 釧路地方法務局庁用自動車（1台）交換契約 | C197: 支出負担行為担当官 釧路地方法務局長 竹村 啓人 （北海道釧路市幸町10-3） | D197: 2024-09-18 | E197: トヨタモビリティ釧路株式会社 北海道釧路市堀川町6-14 | F197: 3460001000495 | G197: 一般競争入札（総合評価落札方式） | H197: 2718088 | I197: 2325200 | J197: 0.855
A198: 195 | B198: 令和6年度松本少年刑務所第3四半期A重油供給契約（25,000L） | C198: 支出負担行為担当官 松本少年刑務所長 中道 徹 （長野県松本市桐3-9-4） | D198: 2024-09-18 | E198: 鈴与商事株式会社 長野県松本市大字笹賀7127-2 | F198: 1080001002318 | G198: 一般競争入札 | H198: 2475000 | I198: 2345750 | J198: 0.947 | K198: 単価契約
A199: 196 | B199: 令和6年度下半期宮城刑務所被収容者食料品供給契約（13品） | C199: 支出負担行為担当官 宮城刑務所長 林 文彦 （宮城県仙台市古城2-3-1） | D199: 2024-09-18 | E199: 随喜産業株式会社 東京都新宿区上落合2-8-2 | F199: 2011101010356 | G199: 一般競争入札 | H199: 2968674 | I199: 2346655 | J199: 0.79 | K199: 単価契約
A200: 197 | B200: 令和6年度下半期小麦粉供給契約（30,000kg） | C200: 支出負担行為担当官 府中刑務所長 八代 宏幸 （東京都府中市晴見町4-10） | D200: 2024-09-18 | E200: 株式会社田中そば製粉 埼玉県所沢市三ヶ島2-708-3 | F200: 1030001028318 | G200: 一般競争入札 | H200: 3207600 | I200: 2786400 | J200: 0.868 | K200: 単価契約
... 188 more rows
